Cogmind - Beta 14 @@@ ROGUE MODE // 2024.08.25 @ 19:35:17 Player: jimmyl Result: Destroyed by as-49718 with Assembled Heavy Rifle Performance ------------- Evolutions (0) 0 Regions Visited (2) 400 Robots Destroyed (24) 120 Value Destroyed (437) 437 Prototype IDs (1) 20 Alien Tech Used (0) 0 Bonus (0) 0 TOTAL SCORE: 977 Bonus ------- None Cogmind --------- Core Integrity 0/250 Matter 300/300 Energy 125/125 System Corruption 1% Temperature Cool (0) Movement Treading (160) Location -10/Mines Parts ------- > --- POWER (1) -------- Light Ion Engine > --- PROPULSION (2) --- Light Treads Compact Wheel > --- UTILITY (2) ------ Heat Sink Medium Storage Unit > --- WEAPON (2) ------- Improved Medium Laser Improved Medium Laser > --- INVENTORY (10) --- Compact Wheel Heat Sink Heat Sink Improved Medium Laser Beam Cannon Grenade Launcher Peak State ------------ > --- POWER ------------ Light Ion Engine > --- PROPULSION ------- Light Treads Light Treads > --- UTILITY ---------- Heat Sink Medium Storage Unit > --- WEAPON ----------- Improved Medium Laser Improved Medium Laser > --- INVENTORY -------- Light Treads Compact Wheel Compact Wheel Heat Sink Heat Sink Improved Medium Laser Improved Medium Laser Beam Cannon [Rating: 12] Favorites ----------- Power Light Ion Engine Engine Light Ion Engine Propulsion Light Treads Treads Light Treads Leg Aluminum Leg Wheel Compact Wheel Utility Heat Sink Device Heat Sink Storage Medium Storage Unit Weapon Improved Medium Laser Energy Gun Improved Medium Laser Energy Cannon Beam Cannon Ballistic Gun Light Assault Rifle Build | -11 -10 -10 ------- Run | Yrd Mat Min Slots Evolved . | . . . Power . | . . . Propulsion . | . . . Utility . | . . . Weapon . | . . . Parts Attached 14 | . 11 3 Power 1 | . 1 . Engine 1 | . 1 . Core . | . . . Reactor . | . . . Propulsion 4 | . 2 2 Treads 3 | . 2 1 Leg . | . . . Wheel 1 | . . 1 Hover . | . . . Flight . | . . . Utility 3 | . 3 . Device 2 | . 2 . Storage 1 | . 1 . Processor . | . . . Hackware . | . . . Protection . | . . . Artifact . | . . . Weapon 6 | . 5 1 Energy Gun 3 | . 2 1 Energy Cannon 2 | . 2 . Ballistic Gun 1 | . 1 . Ballistic Cannon . | . . . Launcher . | . . . Special Weapon . | . . . Impact Weapon . | . . . Slashing Weapon . | . . . Piercing Weapon . | . . . Special Melee Weapon . | . . . Unidentified Prototypes 1 | . 1 . Parts Lost 4 | . 1 3 Power 1 | . 1 . Propulsion 2 | . . 2 Utility . | . . . Weapon 1 | . . 1 Highest Loss Streak 3 | . 1 3 To Critical Strikes . | . . . Average Slot Usage (%) 99 | . 99 98 Engine 13 | . 13 14 Treads 26 | . 27 19 Wheel 1 | . . 6 Device 13 | . 13 14 Storage 14 | . 14 14 Energy Gun 14 | . 11 28 Energy Cannon 10 | . 13 . Ballistic Gun 2 | . 2 . Peak Build Rating 12 | . 12 12 Average Rating 9 | . 9 11 On Entrance 8 | 6 6 12 Naked Turns . | . . . Heaviest Build 22 | 12 22 20 Greatest Support 40 | 20 40 40 Greatest Overweight (x) 6 | . . 6 Average Overweight (x) . | . . . Largest Inventory Capacity 10 | . 10 10 Average Capacity 9 | . 8 10 Most Carried 9 | . 9 9 Average Carried 7 | . 7 7 Final Capacity 10 | 8 10 10 Final Carried 9 | 6 9 6 Class Distribution -------------------- 100% | Mutant Dominant Class ---------------- Mutant | -10/Materials Mutant | -10/Mines Resources | -11 -10 -10 ----------- Run | Yrd Mat Min Matter Collected 371 | 190 122 59 Remotely 45 | . 45 . Salvage Created 556 | . 525 31 Parts 52 | . 51 1 Haulers Intercepted 1 | . 1 . Recyclers Shooed 1 | . 1 . Parts Field Recycled . | . . . Retrieved Matter . | . . . Parts Self-Destructed . | . . . Prevented . | . . . Kills | -11 -10 -10 ------- Run | Yrd Mat Min Combat Hostiles Destroyed 19 | . 18 1 Guns 3 | . 2 1 Cannons 16 | . 16 . Classes Destroyed 6 | . 6 . Builder 1 | . 1 . Hauler 1 | . 1 . Operator 1 | . 1 . Watcher 2 | . 2 . Swarmer 11 | . 11 . Grunt 8 | . 7 1 Best Kill Streak 3 | . 3 1 Combat Bots Only 3 | . 3 1 Max Kills in Single Turn 1 | . 1 1 Gunslinging . | . . . Exploded . | . . . Melee . | . . . Uniques/NPCs Destroyed . | . . . Combat | -11 -10 -10 -------- Run | Yrd Mat Min Hostile Shots Fired 112 | . 85 27 Missed 41 | . 29 12 Damage Taken 984 | . 471 513 Core 252 | . 78 174 Absorbed by Shields . | . . . Core Remaining (%) 100 | 100 . . Volleys Fired 58 | . 48 10 Largest 2 | . 2 2 Hottest 120 | . 120 112 Shots Fired 116 | . 96 20 Gun 36 | . 16 20 Cannon 80 | . 80 . Launcher . | . . . Special . | . . . Kinetic 16 | . 16 . Thermal 100 | . 80 20 Explosive . | . . . Electromagnetic . | . . . Robot Hit Streak 11 | . 11 5 Robot Miss Streak 3 | . 3 2 Penetration Max . | . . . Secondary Targets 1 | . 1 . Max Gunslinging Chain 1 | . 1 . Shots Hit Robots 59 | . 48 11 Core Hits 27 | . 23 4 Critical Kills . | . . . Critical Parts Destroyed . | . . . Critical Strikes 1 | . . 1 Burn 1 | . . 1 Melee Attacks . | . . . Impact . | . . . Slashing . | . . . Piercing . | . . . Sneak Attacks . | . . . Combat Hostiles . | . . . Follow-up Attacks . | . . . Damage Inflicted 1056 | . 870 186 Guns 283 | . 97 186 Cannons 765 | . 765 . Explosions . | . . . Melee . | . . . Ramming 8 | . 8 . Kinetic 97 | . 97 . Thermal 951 | . 765 186 Explosive . | . . . Electromagnetic . | . . . Impact . | . . . Slashing . | . . . Piercing . | . . . Highest Corruption 1 | . 1 1 Average Corruption 1 | . 1 1 Corruption Purged . | . . . Corruption Blocked . | . . . Effects 7 | . 5 2 Message Errors 3 | . 2 1 Matter Fused 1 | . 1 . Heat Flow Errors 1 | . . 1 Energy Discharges 1 | . 1 . Data Loss (major) 1 | . 1 . Overload Shots . | . . . Overflow Damage 6 | . 6 . Projectiles 6 | . 6 . Explosions . | . . . Melee . | . . . Knockbacks . | . . . Impact . | . . . Kinetic . | . . . Secondary . | . . . Self-Inflicted Damage . | . . . Shots . | . . . Rammed 2 | . 2 . Targets Rammed 2 | . 2 . Kicked . | . . . Crushed . | . . . Highest Temperature 218 | . 160 218 Average Temperature 53 | . 45 83 Received Heat Transfer 60 | . 48 12 Siege Activations . | . . . Robots Corrupted . | . . . Combat Hostiles . | . . . Parts Fried . | . . . Impact Corruptions . | . . . Robots Melted . | . . . Combat Hostiles . | . . . Parts Melted 3 | . 3 . Heat Transferred 2035 | . 1554 481 Parts Sabotaged . | . . . Parts Stolen . | . . . Parts Stripped . | . . . Power Chain Reactions . | . . . Alert | -11 -10 -10 ------- Run | Yrd Mat Min Peak Influence 298 | . 298 39 Initial 39 | . . 39 Average 116 | . 138 28 Maximum Alert Level 1 | . 1 . Low Security (%) 86 | . 83 100 Level 1 13 | . 16 . Level 2 . | . . . Level 3 . | . . . Level 4 . | . . . Level 5 . | . . . High Security . | . . . Max Security . | . . . Squads Dispatched 4 | . 4 . Investigation 2 | . 2 . Extermination . | . . . Reinforcement 2 | . 2 . Assault . | . . . Garrison . | . . . Intercept . | . . . Searches Triggered . | . . . Construction Impeded . | . . . Haulers Reinforced . | . . . Active Scanning Responses . | . . . Cargo Convoy Interrupts . | . . . Stealth | -11 -10 -10 --------- Run | Yrd Mat Min Distress Signals 1 | . 1 . Communications Jammed . | . . . Distress Signals . | . . . Times Spotted 38 | . 30 8 Peak Tracking Total 19 | . 3 19 Tactical Retreats 4 | . 3 1 Traps | -11 -10 -10 ------- Run | Yrd Mat Min Traps Triggered 3 | . 3 . Indirectly . | . . . Trap Hack Attempts . | . . . Triggered . | . . . Disarmed . | . . . Reprogrammed . | . . . Reused . | . . . Traps Extracted . | . . . Installed . | . . . Triggered . | . . . Machines | -11 -10 -10 ---------- Run | Yrd Mat Min Machines Disabled . | . . . Max in Single Turn . | . . . Machines Repaired . | . . . Machines Dismantled . | . . . Machines Sabotaged . | . . . Overloaded Fab Kills . | . . . Hacking | -11 -10 -10 --------- Run | Yrd Mat Min Machines Accessed 7 | . 7 . Terminals 7 | . 7 . Fabricators . | . . . Repair Stations . | . . . Recycling Units . | . . . Scanalyzers . | . . . Garrison Access . | . . . Total Hacks 20 | . 20 . Successful 9 | . 9 . Failed 11 | . 11 . Catastrophic 1 | . 1 . Database Lockouts . | . . . Manual 20 | . 20 . Terminals 20 | . 20 . Fabricators . | . . . Repair Stations . | . . . Recycling Units . | . . . Scanalyzers . | . . . Garrison Access . | . . . Terminal Hacks 3 | . 3 . Robot Analysis 3 | . 3 . Fabricator Hacks . | . . . Repair Station Hacks . | . . . Recycling Unit Hacks . | . . . Scanalyzer . | . . . Garrison Access Hacks . | . . . Unauthorized Hacks 6 | . 6 . Terminals 6 | . 6 . Skim 6 | . 6 . Fabricators . | . . . Repair Stations . | . . . Recycling Units . | . . . Scanalyzers . | . . . Garrison Access . | . . . Data Cores Recovered . | . . . Used . | . . . Hacking Detections 6 | . 6 . Full Trace Events 1 | . 1 . Feedback Events . | . . . Feedback Blocked . | . . . Robot Schematics Acquired . | . . . Robots Built . | . . . Authchips . | . . . Time . | . . . Total Robot Build Rating . | . . . Part Schematics Acquired . | . . . Parts Built . | . . . Authchips . | . . . Time . | . . . Total Part Build Rating . | . . . Parts Repaired . | . . . Time . | . . . Parts Recycled . | . . . Recycled Matter . | . . . Retrieved Matter . | . . . Retrieved Components . | . . . Parts Scanalyzed . | . . . Part Schematics Acquired . | . . . Parts Damaged . | . . . Bothacking | -11 -10 -10 ------------ Run | Yrd Mat Min Used RIF Installer . | . . . Robots Hacked . | . . . Non-combat . | . . . Combat . | . . . Robot Hacks Applied . | . . . Relay Couplers Released . | . . . Fabnet Peak Effective % . | . . . Robots Rewired . | . . . Allies Hacked . | . . . Hacks Repelled . | . . . Allies | -11 -10 -10 -------- Run | Yrd Mat Min Total Allies . | . . . Largest Group . | . . . Highest-Rated Group . | . . . Highest-Rated Ally . | . . . Total Orders . | . . . Ally Attacks . | . . . Total Damage . | . . . Kills . | . . . Allies Corrupted . | . . . Allies Melted . | . . . Intel | -11 -10 -10 ------- Run | Yrd Mat Min Robot Analysis Total 3 | . 3 . Derelict Logs Recovered . | . . . Drone Launches . | . . . Drone Recoveries . | . . . Exploration | -11 -10 -10 ------------- Run | Yrd Mat Min Turns Passed 2418 | . 1949 469 Spaces Moved 960 | 1 728 231 Core 1 | . . 1 Treads 938 | . 708 230 Legs 21 | 1 20 . Wheels . | . . . Hover . | . . . Flight . | . . . Fastest Speed 120 | 120 120 160 Average Speed 159 | 120 158 160 Slowest Speed 350 | 120 160 350 Overloaded Moves . | . . . Propulsion Burnouts . | . . . Robots Hopped . | . . . Cave-ins Triggered . | . . . Exploration Rate (%) 50 | 2 94 56 Regions Visited 2 Branch Regions 1 Pre-discovered Areas 2 | . 2 . Known Exits Taken . | . . . Unknown Exits Taken 2 | 1 1 . Scrap Searched 1 | . . 1 Spaces Dug . | . . . Terrain Destroyed . | . . . Melee . | . . . Projectile . | . . . AOE . | . . . Terrain Rammed . | . . . Walls Destroyed . | . . . Machines Disabled . | . . . Actions | -11 -10 -10 --------- Run | Yrd Mat Min Total 1737 | . 1428 309 Wait 684 | . 619 65 Move 958 | . 727 231 Hop . | . . . Pick Up 10 | . 10 . Fast Attach 3 | . 3 . Attach 9 | . 6 3 Detach 2 | . 2 . Swap 2 | . 2 . Drop 9 | . 9 . Fire 58 | . 48 10 Melee . | . . . Ram . | . . . Kick . | . . . Crush 2 | . 2 . Escape Stasis . | . . . Rewire . | . . . Trap . | . . . Miscellaneous . | . . . Route ------- -11/Scrapyard -10/Materials (discovered 6 exits: *Mat x3 / [*Min x2] / Sub) -10/Mines (discovered 1 exit: Mat) History --------- Turn | Location | Event 1 | -11/Scrapyard | Discovered new exit (range 0) 1 | -11/Scrapyard | Entered Materials 310 | -10/Materials | Build established: Mutant 323 | -10/Materials | Discovered new exit (range 14) 650 | -10/Materials | Discovered new exit (range 16) 809 | -10/Materials | Discovered new exit (range 16) 1007 | -10/Materials | Discovered new exit (range 8) 1173 | -10/Materials | Discovered new exit (range 16) 1379 | -10/Materials | Identified exit to Subcaves 1456 | -10/Materials | Loaded intel: 8 terminal locations 1582 | -10/Materials | Learned 2 Mines zone layouts 1633 | -10/Materials | Learned Storage security intel 1675 | -10/Materials | Learned location of 1 exit from Recycling 1708 | -10/Materials | Learned location of Subcaves (-10) 1752 | -10/Materials | Identified exit to Materials 1950 | -10/Materials | Entered Mines 2172 | -10/Mines | Core integrity fell below 50% 2206 | -10/Mines | Lost 3 parts (2n1w) 2415 | -10/Mines | Assembled infested the area 2417 | -10/Mines | Core integrity fell below 20% 2419 | -10/Mines | Destroyed by as-49718 with Assembled Heavy Rifle Last Messages --------------- 02187_ The unstable cave ceiling collapses. 02188_ System corrupted: Heat flow error (+152). 02188_ The unstable cave ceiling collapses. 02194_ G-34 Mercenary suffers critical hit (Burn). 02194_ G-34 Mercenary destroyed. 02199_ The unstable cave ceiling collapses. 02208_ YI-UF0 destroyed. 02215_ The unstable cave ceiling collapses. 02221_ Acquired 30 matter. 02224_ The unstable cave ceiling collapses. 02230_ R-06 Scavenger collects Carbon-fiber Leg. 02231_ The unstable cave ceiling collapses. 02328_ T-07 Excavator is excavating. 02415_ ALERT: Infestation in the mines, dispatching Demolisher response squad. 02417_ U-05 Engineer lays Concrete. 02418_ U-05 Engineer builds a Wall. 02419_ 0Y-QNU(h): "I'll hold them off! Go on ahead or try to find another way!" 02419_ HV Slug penetrates Wall. Map ----- +----------------------------------------------------+ | ?????????????????????????????????????????????????? | | ?????????????????????????????????????????????????? | | ?????????????????????????????????????????????????? | | ?????????????????????????????????????????????????? | | ?????????????????????????????????????????????????? | | ?????????????????????????????????????????????????? | | ?????????????????????????????????????????????????? | | ?????????????????????????????????????????????????? | | ?????????????????????????????????????????????????? | | ????????????????????????? ?? ??????????????????? | | ???????????????????????# ?; ?????????#??????### | | ???????????????????????# ?; ????###### ????## | | ??????????????????????## # ????? ##### | | ??????????????????????? #?????????# | | ?????????????????????? a##????????# | | ??????????????????????? a ####?????#### | | ??????????????????????? ?????????# % # | | ???????????????????????? ??????????# | | ??# ### #?## ## ???????????# | | ??## ##?## #??######### #???????????## % | | ???# #???## ##?????????# #???????????# | | ???# ##???# ######???## #????????#### # | | ??## ##### k##### #????????# | | ??# ## ## #??####??# ## # | | ??# #### ##?# ## ## | | ??# @ h ## ### ### ##? | | ??# # #####?? | | ??# # ## #?????? | | ??# ## #### #### ##### #?????? | | ??# ## ##?## ##??##### t##???# ####### | | ??# ## ##?# ###??????# u#???# ## # | | ??# #?## # #????????# ###???# | | ??# ##?####### #????????####?????#### | | ??# ######### #????????????????????# | | ??## #????????????????????# | | ???## ############???????????????????# | | ????### ##?????????????????????????????# | | ??????## ##?????????????????????????????# | | ???????####??????????????????????????????# # | | ?????????????????????????????????????????# #### | | ?????????????????????????????????????????## #???? | | ??????????????????????????????????????????###????? | | ?????????????????????????????????????????????????? | | | | | | | | | | | | | | | +----------------------------------------------------+ Best States ------------- Heat Dissipation 35 Energy Generation 10 Energy Capacity 250 Matter Stores 300 Matter Capacity 300 Sight Range 16 Terrain Scan Density 10 Evasion (%) 55 Recoil Reduction 2 Item Schematics ----------------- None Robot Schematics ------------------ None Fabricated ------------ Nothing Alien Tech Used ----------------- None Achievements -------------- None Challenges ------------ None Game ------ Seed AluminumCoilLink Manual? 0 Play Time 00:11:47 Cumulative 106.8 hours Start 2024.08.25 @ 19:23:55 End 2024.08.25 @ 19:35:17 Sessions 1 Manual Loads 0 Difficulty Rogue Special Mode None Game No. 182 Rogue 181 Adventurer 1 Explorer 0 Win Type - Total 0 Types 0/0/0/0/0/0/0/0/0 Lore% 60 Gallery% 64 Achievement% 48 Wizard Run 0 Options --------- Layout 1 ASCII 0 Keyboard 0 Movement Mouse Keybinds 0 Fullscreen 2 Font 20/SmallcapsGlow Map View 54x42 Zoom Use 0% Tactical HUD 1 Map Filters NONE Filters NONE Steam 0 RUN: 58166df4-8afa-42a3-a012-df77e703d642